fUSD/lending_fUSD_20260606
["ID","MTS","AMOUNT","RATE_DAILY","PERIOD"]
[424280731,1780739194000,-10000.0,7.688e-05,2]
[424280732,1780739195000,-10000.0,7.688e-05,2]
[424280733,1780739196000,-10000.0,7.688e-05,2]
[424280734,1780739197000,-10000.0,7.688e-05,2]
[424280735,1780739199000,-10000.0,7.688e-05,2]
[424280736,1780739200000,-10000.0,7.688e-05,2]
[424280737,1780739211000,-10000.0,7.688e-05,2]
[424280738,1780739212000,-10000.0,7.688e-05,2]
[424280739,1780739214000,-10000.0,7.688e-05,2]
[424280740,1780739218000,-10000.0,7.688e-05,2]
[424280741,1780739219000,-10000.0,7.688e-05,2]
[424280742,1780739220000,-10000.0,7.688e-05,2]
[424280743,1780739221000,-10000.0,7.688e-05,2]
[424280744,1780739222000,-10000.0,7.688e-05,2]
[424280748,1780739243000,350.0,8.219e-05,3]
[424280758,1780739306000,-500.0,7.687e-05,2]
[424280753,1780739306000,-213.12378863,7.174e-05,2]
[424280755,1780739306000,-151.0,7.685e-05,2]
[424280754,1780739306000,-150.0,7.457e-05,2]
[424280757,1780739306000,-500.0,7.687e-05,2]
[424280759,1780739306000,-500.0,7.687e-05,2]
[424280760,1780739306000,-500.0,7.687e-05,2]
[424280761,1780739306000,-303.94901737,7.687e-05,2]
[424280756,1780739306000,-500.0,7.687e-05,2]
[424280762,1780739306000,-500.0,7.687e-05,2]
[424280765,1780739306000,-244.24971464,7.687e-05,2]
[424280764,1780739306000,-255.75028536,7.687e-05,2]
[424280766,1780739306000,-500.0,7.687e-05,2]
[424280767,1780739306000,-500.0,7.687e-05,2]
[424280768,1780739306000,-500.0,7.687e-05,2]
[424280770,1780739306000,-233.93232928,7.687e-05,2]
[424280769,1780739306000,-500.0,7.687e-05,2]
[424280763,1780739306000,-500.0,7.687e-05,2]
[424280772,1780739331000,-500.0,7.687e-05,2]
[424280773,1780739331000,-500.0,7.687e-05,2]
[424280771,1780739331000,-266.06767072,7.687e-05,2]
[424280775,1780739332000,-500.0,7.687e-05,2]
[424280776,1780739332000,-500.0,7.687e-05,2]
[424280779,1780739332000,-500.0,7.687e-05,2]
[424280777,1780739332000,-500.0,7.687e-05,2]
[424280774,1780739332000,-500.0,7.687e-05,2]
[424280780,1780739332000,-448.79552334,7.687e-05,2]
[424280781,1780739332000,-51.20447666,7.687e-05,2]
[424280783,1780739332000,-500.0,7.687e-05,2]
[424280782,1780739332000,-500.0,7.687e-05,2]
[424280784,1780739332000,-469.50405452,7.687e-05,2]
[424280778,1780739332000,-500.0,7.687e-05,2]
[424280796,1780739343000,-500.0,7.687e-05,2]
[424280797,1780739343000,-500.0,7.687e-05,2]
[424280799,1780739343000,-500.0,7.687e-05,2]
[424280793,1780739343000,-500.0,7.687e-05,2]
[424280795,1780739343000,-500.0,7.687e-05,2]
[424280794,1780739343000,-500.0,7.687e-05,2]
[424280791,1780739343000,-500.0,7.687e-05,2]
[424280789,1780739343000,-500.0,7.687e-05,2]
[424280790,1780739343000,-500.0,7.687e-05,2]
[424280788,1780739343000,-500.0,7.687e-05,2]
[424280786,1780739343000,-500.0,7.687e-05,2]
[424280787,1780739343000,-319.27724102,7.687e-05,2]
[424280785,1780739343000,-30.49594548,7.687e-05,2]
[424280798,1780739343000,-500.0,7.687e-05,2]
[424280792,1780739343000,-500.0,7.687e-05,2]
[424280800,1780739343000,-500.0,7.687e-05,2]
[424280803,1780739343000,-500.0,7.687e-05,2]
[424280801,1780739343000,-500.0,7.687e-05,2]
[424280816,1780739343000,-150.0,7.687e-05,2]
[424280815,1780739343000,-500.0,7.687e-05,2]
[424280814,1780739343000,-500.0,7.687e-05,2]
[424280811,1780739343000,-500.0,7.687e-05,2]
[424280813,1780739343000,-500.0,7.687e-05,2]
[424280812,1780739343000,-500.0,7.687e-05,2]
[424280810,1780739343000,-500.0,7.687e-05,2]
[424280809,1780739343000,-500.0,7.687e-05,2]
[424280807,1780739343000,-500.0,7.687e-05,2]
[424280806,1780739343000,-500.0,7.687e-05,2]
[424280805,1780739343000,-500.0,7.687e-05,2]
[424280804,1780739343000,-500.0,7.687e-05,2]
[424280817,1780739343000,-1277.2268135,7.688e-05,2]
[424280808,1780739343000,-500.0,7.687e-05,2]
[424280802,1780739343000,-500.0,7.687e-05,2]
[424280818,1780739346000,1584.0,8.14e-05,5]
[424280820,1780739356000,-855.57970604,7.688e-05,2]
[424280819,1780739356000,-4839.57462857,7.688e-05,2]
[424280826,1780739381000,-1145.95300564,7.688e-05,2]
[424280825,1780739381000,-150.0,7.456e-05,2]
[424280824,1780739381000,-1440.99654092,7.188e-05,2]
[424280823,1780739381000,-4622.14345908,7.188e-05,2]
[424280822,1780739381000,-331.33425618,7.183e-05,2]
[424280827,1780739395000,-6815.0,7.682e-05,2]
[424280829,1780739406000,-2383.01515851,7.682e-05,2]
[424280828,1780739406000,-5107.2862605,7.682e-05,2]
[424280848,1780739434000,-1316.83551856,7.588e-05,2]
[424280847,1780739434000,-150.0,6.967e-05,2]
[424280849,1780739434000,-797.59445327,7.588e-05,2]
[424280852,1780739434000,-113377.45550482,7.588e-05,2]
[424280851,1780739434000,-11524.08384218,7.588e-05,2]
[424280854,1780739434000,-1600.0,7.588e-05,2]
[424280850,1780739434000,-765.71157577,7.588e-05,2]
[424280855,1780739434000,-292.97700002,7.588e-05,2]
[424280857,1780739434000,-642.29822088,7.588e-05,2]
[424280856,1780739434000,-1901.57243958,7.588e-05,2]
[424280859,1780739434000,-980.68160655,7.588e-05,2]
[424280858,1780739434000,-378.71365915,7.588e-05,2]
[424280860,1780739434000,-3009.58828814,7.588e-05,2]
[424280853,1780739434000,-15949.43940915,7.588e-05,2]
[424280873,1780739438000,-3653.7485377,7.588e-05,2]
[424280874,1780739438000,-302.97385118,7.588e-05,2]
[424280876,1780739438000,-1007.20313469,7.588e-05,2]
[424280875,1780739438000,-10943.95849212,7.588e-05,2]
[424280883,1780739440000,-300.0,7.588e-05,2]
[424280882,1780739440000,-488.32685115,7.588e-05,2]
[424280888,1780739442000,-3150.0,7.588e-05,2]
[424280887,1780739442000,-878.93853867,7.588e-05,2]
[424280886,1780739442000,-0.21537694,7.588e-05,2]
[424280905,1780739443000,-247916.59686128,7.588e-05,2]
[424280904,1780739443000,-600150.35637886,7.588e-05,2]
[424280903,1780739443000,-445.05670258,7.588e-05,2]
[424280927,1780739446000,-419.27752317,7.588e-05,2]
[424280930,1780739446000,-580.14160015,7.588e-05,2]
[424280929,1780739446000,-320.44288454,7.588e-05,2]
[424280928,1780739446000,-330.44478709,7.588e-05,2]
[424280935,1780739557000,639.28838974,0.0001,3]
[424280936,1780739578000,742.53882358,0.00030136,120]
[424280939,1780739637000,-448.94,6.961e-05,2]
[424280940,1780739645000,209.68,6.941e-05,2]
[424280942,1780739654000,350.0,8.219e-05,3]
[424280943,1780739733000,163.51,0.00028973,120]
[424280944,1780739801000,161.23,5.37e-05,2]
[424280945,1780739871000,1548.53,6.762e-05,2]
[424280946,1780739950000,1531.0,8.14e-05,5]
[424280947,1780739973000,1112.73,6.714e-05,2]
[424280948,1780739980000,1878.38,6.714e-05,2]
[424280949,1780740065000,350.0,8.219e-05,3]
[424280950,1780740068000,17840.51,6.646e-05,2]
[424280951,1780740068000,267.44422649,6.646e-05,2]
[424280953,1780740068000,2388.15310294,6.646e-05,2]
[424280952,1780740068000,2568.82658054,6.646e-05,2]
[424280955,1780740068000,378.24568997,6.646e-05,2]
[424280956,1780740068000,2291.73013834,6.646e-05,2]
[424280957,1780740068000,3780.93733811,6.646e-05,2]
[424280954,1780740068000,2604.02341136,6.646e-05,2]
[424280958,1780740330000,500.0,0.0003013,120]
[424280963,1780740471000,350.0,8.219e-05,3]
[424280964,1780740489000,428.32322113,0.0001,3]
[424280965,1780740527000,-3001.29,6.276e-05,2]
[424280967,1780740527000,-150.0,6.369e-05,2]
[424280966,1780740527000,-150.0,6.338e-05,2]
[424280968,1780740527000,-150.0,6.4e-05,2]
[424280969,1780740527000,-1000.0,6.461e-05,2]
[424280971,1780740527000,-250.0,6.481e-05,2]
[424280973,1780740527000,-1054.83883747,6.501e-05,2]
[424280972,1780740527000,-0.10128484,6.501e-05,2]
[424280970,1780740527000,-150.0,6.463e-05,2]
[424280987,1780740550000,189.129734,0.0001,3]
[424280999,1780740553000,-150.0,6.642e-05,2]
[424280996,1780740553000,-1848.66987769,6.501e-05,2]
[424280997,1780740553000,-150.0,6.526e-05,2]
[424280998,1780740553000,-150.0,6.589e-05,2]
[424281000,1780740553000,-500.0,6.643e-05,2]
[424281001,1780740553000,-500.0,6.643e-05,2]
[424281005,1780740553000,-170.8460096,6.643e-05,2]
[424281003,1780740553000,-500.0,6.643e-05,2]
[424281006,1780740553000,-329.1539904,6.643e-05,2]
[424281004,1780740553000,-500.0,6.643e-05,2]
[424281007,1780740553000,-500.0,6.643e-05,2]
[424281008,1780740553000,-178.65874947,6.643e-05,2]
[424281002,1780740553000,-500.0,6.643e-05,2]
[424281015,1780740578000,-500.0,6.643e-05,2]
[424281014,1780740578000,-500.0,6.643e-05,2]
[424281013,1780740578000,-500.0,6.643e-05,2]
[424281012,1780740578000,-500.0,6.643e-05,2]
[424281011,1780740578000,-261.38764784,6.643e-05,2]
[424281010,1780740578000,-500.0,6.643e-05,2]
[424281009,1780740578000,-321.34125053,6.643e-05,2]
[424281018,1780740579000,-500.0,6.643e-05,2]
[424281017,1780740579000,-500.0,6.643e-05,2]
[424281016,1780740579000,-500.0,6.643e-05,2]
[424281021,1780740579000,-493.66643854,6.643e-05,2]
[424281019,1780740579000,-500.0,6.643e-05,2]
[424281022,1780740579000,-218.7970029,6.643e-05,2]
[424281020,1780740579000,-6.33356146,6.643e-05,2]
[424281026,1780740603000,-3760.36040556,6.646e-05,2]
[424281027,1780740603000,-467.65900883,6.646e-05,2]
[424281024,1780740603000,-292.6031426,6.645e-05,2]
[424281025,1780740603000,-317.1294297,6.645e-05,2]
[424281023,1780740603000,-835.0,6.642e-05,2]
[424281047,1780740631000,-1953.39,7.151e-05,2]
[424281053,1780740631000,-151.0,7.585e-05,2]
[424281051,1780740631000,-160.0,7.531e-05,2]
[424281045,1780740631000,-150.99,7.151e-05,2]
[424281052,1780740631000,-477372.1729316,7.58e-05,2]
[424281056,1780740631000,-2028.1152831,7.587e-05,2]
[424281048,1780740631000,-250.0,7.311e-05,2]
[424281065,1780740631000,-166.66,7.781e-05,2]
[424281050,1780740631000,-500.0,7.507e-05,2]
[424281058,1780740631000,-211.8113,7.588e-05,2]
[424281054,1780740631000,-18740.6230108,7.587e-05,2]
[424281046,1780740631000,-299.99,7.151e-05,2]
[424281043,1780740631000,-166.7,7.149e-05,2]
[424281042,1780740631000,-150.0,7.137e-05,2]
[424281044,1780740631000,-250.0,7.151e-05,2]
[424281039,1780740631000,-2074.5,7.107e-05,2]
[424281057,1780740631000,-150.13075189,7.587e-05,2]
[424281041,1780740631000,-24999.99,7.107e-05,2]
[424281034,1780740631000,-150.0,6.714e-05,2]
[424281037,1780740631000,-312.40637375,6.903e-05,2]
[424281040,1780740631000,-9999.99,7.107e-05,2]
[424281036,1780740631000,-171.0,6.84e-05,2]
[424281032,1780740631000,-45331.90009786,6.646e-05,2]
[424281035,1780740631000,-150.0,6.777e-05,2]
[424281038,1780740631000,-368.14,7.107e-05,2]
[424281033,1780740631000,-150.0,6.651e-05,2]
[424281049,1780740631000,-150.0,7.357e-05,2]
[424281059,1780740631000,-500.0,7.616e-05,2]
[424281055,1780740631000,-1163.5913262,7.587e-05,2]
[424281061,1780740631000,-156.587,7.645e-05,2]
[424281111,1780740631000,-500.0,8.877e-05,2]
[424281109,1780740631000,-153.96,8.806e-05,2]
[424281107,1780740631000,-166.66,8.707e-05,2]
[424281105,1780740631000,-500.0,8.493e-05,2]
[424281063,1780740631000,-17190.39057609,7.682e-05,2]
[424281092,1780740631000,-2000.0,8.219e-05,2]
[424281097,1780740631000,-500.0,8.356e-05,2]
[424281102,1780740631000,-10722.99120791,8.403e-05,2]
[424281090,1780740631000,-7597.02,8.219e-05,2]
[424281093,1780740631000,-400.72288756,8.251e-05,2]
[424281084,1780740631000,-4499.03,8.219e-05,2]
[424281088,1780740631000,-2340.13,8.219e-05,2]
[424281086,1780740631000,-153.96,8.219e-05,2]
[424281075,1780740631000,-2823.328284,8.178e-05,2]
[424281100,1780740631000,-166.66,8.398e-05,2]
[424281070,1780740631000,-151.0,8.045e-05,2]
[424281076,1780740631000,-152.51561586,8.181e-05,2]
[424281062,1780740631000,-200.08318283,7.645e-05,2]
[424281064,1780740631000,-500.0,7.781e-05,2]
[424281067,1780740631000,-151.0,7.952e-05,2]
[424281082,1780740631000,-500.0,8.219e-05,2]
[424281078,1780740631000,-1000.0,8.218e-05,2]
[424281060,1780740631000,-151.0,7.645e-05,2]
[424281066,1780740631000,-1980.125075,7.945e-05,2]
[424281080,1780740631000,-151.98,8.219e-05,2]
[424281073,1780740631000,-166.66,8.16e-05,2]
[424281072,1780740631000,-166.66,8.09e-05,2]
[424281068,1780740631000,-500.0,8e-05,2]
[424281077,1780740631000,-161.0,8.192e-05,2]
[424281128,1780740632000,-1000.0,0.0001,2]
[424281121,1780740632000,-153.96,9.98e-05,2]
[424281140,1780740632000,-1000.0,0.0001,2]
[424281137,1780740632000,-1000.0,0.0001,2]
[424281139,1780740632000,-1000.0,0.0001,2]
[424281138,1780740632000,-1000.0,0.0001,2]
[424281129,1780740632000,-1000.0,0.0001,2]
[424281120,1780740632000,-455.76,9.879e-05,2]
[424281122,1780740632000,-379.8916561,0.0001,2]
[424281123,1780740632000,-631.38743956,0.0001,2]
[424281124,1780740632000,-514.58932859,0.0001,2]
[424281119,1780740632000,-205.0,9.8e-05,2]
[424281115,1780740632000,-41223.4335851,9.04e-05,2]
[424281125,1780740632000,-1000.0,0.0001,2]
[424281126,1780740632000,-1000.0,0.0001,2]
[424281118,1780740632000,-153.96,9.393e-05,2]
[424281117,1780740632000,-2000.0,9.247e-05,2]
[424281113,1780740632000,-367.48366413,9.022e-05,2]
[424281131,1780740632000,-1000.0,0.0001,2]
[424281127,1780740632000,-1000.0,0.0001,2]
[424281130,1780740632000,-1000.0,0.0001,2]
[424281133,1780740632000,-1000.0,0.0001,2]
[424281149,1780740632000,-1000.0,0.0001,2]
[424281157,1780740632000,-1052.02671,0.0001,2]
[424281166,1780740632000,-151.0,0.000103,2]
[424281156,1780740632000,-1052.0267,0.0001,2]
[424281145,1780740632000,-1000.0,0.0001,2]
[424281143,1780740632000,-1000.0,0.0001,2]
[424281144,1780740632000,-1000.0,0.0001,2]
[424281146,1780740632000,-1000.0,0.0001,2]
[424281158,1780740632000,-1052.0267,0.0001,2]
[424281147,1780740632000,-1000.0,0.0001,2]
[424281132,1780740632000,-1000.0,0.0001,2]
[424281148,1780740632000,-1000.0,0.0001,2]
[424281154,1780740632000,-1052.02671,0.0001,2]
[424281153,1780740632000,-1052.0267,0.0001,2]
[424281151,1780740632000,-163.61,0.0001,2]
[424281152,1780740632000,-151.0,0.0001,2]
[424281150,1780740632000,-201.6412839,0.0001,2]
[424281142,1780740632000,-1000.0,0.0001,2]
[424281135,1780740632000,-1000.0,0.0001,2]
[424281136,1780740632000,-1000.0,0.0001,2]
[424281134,1780740632000,-1000.0,0.0001,2]
[424281141,1780740632000,-1000.0,0.0001,2]
[424281183,1780740633000,-130014.76621009,0.000107,2]
[424281184,1780740633000,-86979.9519611,0.000107,2]
[424281187,1780740633000,-7868.3288349,0.000107,2]
[424281185,1780740633000,-194737.15332521,0.000107,2]
[424281186,1780740633000,-1254.41808677,0.000107,2]
[424281194,1780740637000,-215.80795776,7.531e-05,2]
[424281196,1780740637000,-821.77174318,0.000106,2]
[424281197,1780740637000,-1120444.97533738,0.000107,2]
[424281198,1780740637000,-1069.11,0.000107,2]
[424281195,1780740637000,-534.19204224,0.000106,2]
[424281234,1780740639000,-514.85500988,9.9e-05,2]
[424281233,1780740639000,-2861.13556126,9.9e-05,2]
[424281232,1780740639000,-380.30947352,9.9e-05,2]
[424281260,1780740640000,-154.11,0.00010989,2]
[424281267,1780740640000,-2998.53549305,0.00011099,2]
[424281266,1780740640000,-2998.53549305,0.00011099,2]
[424281263,1780740640000,-2245.99821166,0.00011,2]
[424281265,1780740640000,-2998.53549309,0.00011099,2]
[424281270,1780740640000,-2998.53549305,0.00011099,2]
[424281262,1780740640000,-249.39,0.00010989,2]
[424281271,1780740640000,-2998.53549305,0.00011099,2]
[424281268,1780740640000,-2998.53549305,0.00011099,2]
[424281261,1780740640000,-150.0,0.00010989,2]
[424281264,1780740640000,-4000.0,0.0001103,2]
[424281283,1780740640000,-1227.0,0.00011818,2]
[424281276,1780740640000,-2000.0,0.00011301,2]
[424281275,1780740640000,-153.96,0.00011155,2]
[424281277,1780740640000,-199.5,0.00011369,2]
[424281274,1780740640000,-2998.53549305,0.00011099,2]
[424281278,1780740640000,-4499.03,0.00011507,2]
[424281280,1780740640000,-153.96,0.00011742,2]
[424281279,1780740640000,-4444.03042186,0.00011696,2]
[424281282,1780740640000,-382.0,0.00011818,2]
[424281281,1780740640000,-1274.0,0.00011818,2]
[424281284,1780740640000,-6073.0,0.00011818,2]
[424281272,1780740640000,-2998.53549305,0.00011099,2]
[424281273,1780740640000,-2998.53549305,0.00011099,2]
[424281269,1780740640000,-2998.53549305,0.00011099,2]
[424281241,1780740640000,-151.0,0.000107,2]
[424281256,1780740640000,-200.0,0.00010959,2]
[424281239,1780740640000,-151.0,0.000107,2]
[424281236,1780740640000,-1243.69995534,9.9e-05,2]
[424281237,1780740640000,-1355864.23016586,0.000107,2]
[424281238,1780740640000,-151.0,0.000107,2]
[424281235,1780740640000,-1493.44777533,9.89e-05,2]
[424281240,1780740640000,-151.0,0.000107,2]
[424281242,1780740640000,-151.0,0.000107,2]
[424281245,1780740640000,-151.0,0.000107,2]
[424281244,1780740640000,-219.937538,0.000107,2]
[424281243,1780740640000,-151.0,0.000107,2]
[424281258,1780740640000,-150.0,0.00010959,2]
[424281246,1780740640000,-4000.0,0.00010779,2]
[424281250,1780740640000,-4444.03042186,0.000109,2]
[424281249,1780740640000,-4444.03042186,0.000109,2]
[424281251,1780740640000,-4444.03042186,0.000109,2]
[424281257,1780740640000,-150.0,0.00010959,2]
[424281259,1780740640000,-181.76,0.00010989,2]
[424281253,1780740640000,-200.0,0.00010959,2]
[424281252,1780740640000,-200.0,0.00010959,2]
[424281247,1780740640000,-169.65,0.00010888,2]
[424281255,1780740640000,-200.0,0.00010959,2]
[424281254,1780740640000,-200.0,0.00010959,2]
[424281248,1780740640000,-169.65,0.00010888,2]
[424281286,1780740640000,-455.76,0.00011975,2]
[424281320,1780740640000,-3329.59815256,0.00013,2]
[424281295,1780740640000,-163.51,0.00012329,2]
[424281326,1780740640000,-150.0,0.00013151,2]
[424281322,1780740640000,-4354.71205163,0.0001305,2]
[424281317,1780740640000,-1500.0,0.00012799,2]
[424281319,1780740640000,-22230.39,0.0001288,2]
[424281321,1780740640000,-9062.14012956,0.00013,5]
[424281318,1780740640000,-22230.39,0.0001288,2]
[424281314,1780740640000,-3554.0,0.00012654,2]
[424281316,1780740640000,-1030.0,0.00012799,2]
[424281327,1780740640000,-150.0,0.00013151,2]
[424281329,1780740640000,-4444.03042186,0.00013298,2]
[424281325,1780740640000,-150.0,0.00013151,2]
[424281332,1780740640000,-1068.11,0.00013347,2]
[424281335,1780740640000,-669.61574187,0.00013611,2]
[424281328,1780740640000,-289.31435679,0.00013151,2]
[424281331,1780740640000,-4181.5982136,0.00013338,2]
[424281338,1780740640000,-669.61574187,0.00013624,2]
[424281336,1780740640000,-669.61574187,0.00013613,2]
[424281333,1780740640000,-1555.5,0.00013347,2]
[424281334,1780740640000,-7027.6387988,0.00013359,2]
[424281340,1780740640000,-669.61574187,0.00013631,2]
[424281339,1780740640000,-669.61574187,0.00013625,2]
[424281294,1780740640000,-151.98,0.00012329,2]
[424281330,1780740640000,-106516.1293966,0.00013337,2]
[424281324,1780740640000,-151.04629891,0.00013151,2]
[424281337,1780740640000,-669.61574187,0.00013617,2]
[424281315,1780740640000,-1355.9637854,0.0001275,2]
[424281296,1780740640000,-2000.0,0.00012329,2]
[424281323,1780740640000,-150.0,0.00013151,2]
[424281297,1780740640000,-153.96,0.00012329,2]
[424281285,1780740640000,-3642.0,0.00011818,2]
[424281298,1780740640000,-4444.03042186,0.00012497,2]
[424281288,1780740640000,-151.0,0.00012,2]
[424281287,1780740640000,-151.0,0.00012,2]
[424281291,1780740640000,-332.25293669,0.00012,2]
[424281289,1780740640000,-151.0,0.00012,2]
[424281292,1780740640000,-5000.0,0.000123,2]
[424281299,1780740640000,-311.81027153,0.000125,2]
[424281290,1780740640000,-151.0,0.00012,2]
[424281313,1780740640000,-1364.016,0.00012654,2]
[424281312,1780740640000,-150.0,0.00012654,2]
[424281308,1780740640000,-150.0,0.00012654,2]
[424281310,1780740640000,-150.0,0.00012654,2]
[424281301,1780740640000,-150.0,0.00012654,2]
[424281303,1780740640000,-150.0,0.00012654,2]
[424281309,1780740640000,-150.0,0.00012654,2]
[424281304,1780740640000,-150.0,0.00012654,2]
[424281305,1780740640000,-150.0,0.00012654,2]
[424281307,1780740640000,-150.0,0.00012654,2]
[424281300,1780740640000,-200.0,0.00012546,2]
[424281306,1780740640000,-150.0,0.00012654,2]
[424281385,1780740641000,-350.0,0.00013768,3]
[424281380,1780740641000,-669.61574187,0.00013705,2]
[424281367,1780740641000,-500.0,0.00013698,2]
[424281382,1780740641000,-669.61574187,0.00013741,2]
[424281381,1780740641000,-669.61574187,0.00013726,2]
[424281386,1780740641000,-669.61574187,0.00013768,2]
[424281377,1780740641000,-443.72571878,0.00013699,2]
[424281376,1780740641000,-166.66,0.00013699,2]
[424281387,1780740641000,-669.61574187,0.00013785,2]
[424281369,1780740641000,-500.0,0.00013698,2]
[424281379,1780740641000,-537.0,0.00013699,2]
[424281378,1780740641000,-500.0,0.00013699,2]
[424281384,1780740641000,-669.61574187,0.00013764,2]
[424281390,1780740641000,-669.61574187,0.0001381,2]
[424281391,1780740641000,-10000.0,0.00013812,2]
[424281399,1780740641000,-157.624035,0.00013837,2]
[424281397,1780740641000,-669.61574187,0.00013828,2]
[424281393,1780740641000,-151.0,0.00013812,2]
[424281392,1780740641000,-151.0,0.00013812,2]
[424281388,1780740641000,-669.61574187,0.00013787,2]
[424281396,1780740641000,-669.61574187,0.00013817,2]
[424281394,1780740641000,-151.0,0.00013812,2]
[424281389,1780740641000,-669.61574187,0.00013794,2]
[424281395,1780740641000,-3288.72180023,0.00013812,2]
[424281398,1780740641000,-166.66,0.00013836,2]
[424281400,1780740641000,-669.61574187,0.00013837,2]
[424281375,1780740641000,-200.0,0.00013699,2]
[424281383,1780740641000,-669.61574187,0.00013757,2]
[424281374,1780740641000,-153.600806,0.00013699,2]
[424281342,1780740641000,-669.61574187,0.00013638,2]
[424281370,1780740641000,-500.0,0.00013698,2]
[424281350,1780740641000,-500.0,0.00013698,2]
[424281349,1780740641000,-500.0,0.00013698,2]
[424281348,1780740641000,-500.0,0.00013698,2]
[424281343,1780740641000,-669.61574187,0.00013651,2]
[424281344,1780740641000,-669.61574187,0.00013663,2]
[424281341,1780740641000,-669.61574187,0.00013632,2]
[424281345,1780740641000,-669.61574187,0.00013675,2]
[424281347,1780740641000,-500.0,0.00013698,2]
[424281346,1780740641000,-500.0,0.00013698,2]
[424281351,1780740641000,-500.0,0.00013698,2]
[424281353,1780740641000,-500.0,0.00013698,2]
[424281355,1780740641000,-500.0,0.00013698,2]
[424281354,1780740641000,-500.0,0.00013698,2]
[424281368,1780740641000,-500.0,0.00013698,2]
[424281356,1780740641000,-500.0,0.00013698,2]
[424281359,1780740641000,-500.0,0.00013698,2]
[424281360,1780740641000,-500.0,0.00013698,2]
[424281352,1780740641000,-500.0,0.00013698,2]
[424281361,1780740641000,-500.0,0.00013698,2]
[424281358,1780740641000,-500.0,0.00013698,2]
[424281362,1780740641000,-500.0,0.00013698,2]
[424281363,1780740641000,-500.0,0.00013698,2]
[424281371,1780740641000,-500.0,0.00013698,2]
[424281364,1780740641000,-500.0,0.00013698,2]
[424281365,1780740641000,-500.0,0.00013698,2]
[424281366,1780740641000,-500.0,0.00013698,2]
[424281372,1780740641000,-518.2,0.00013699,2]
[424281373,1780740641000,-151.0,0.00013699,2]
[424281357,1780740641000,-500.0,0.00013698,2]
[424281404,1780740641000,-669.61574187,0.00013869,2]
[424281403,1780740641000,-181.107723,0.00013869,2]
[424281408,1780740641000,-15000.0,0.00013924,2]
[424281434,1780740641000,-6111.0,0.00014278,2]
[424281439,1780740641000,-1148.61238259,0.00014443,2]
[424281449,1780740641000,-1568.0781706,0.00014626,2]
[424281450,1780740641000,-250.0,0.0001464,2]
[424281440,1780740641000,-1672.7364795,0.00014443,2]
[424281443,1780740641000,-6111.0,0.00014556,2]
[424281447,1780740641000,-23766.9610106,0.00014621,2]
[424281445,1780740641000,-209.82,0.00014558,2]
[424281441,1780740641000,-10000.0,0.00014452,2]
[424281446,1780740641000,-6111.0,0.00014618,2]
[424281442,1780740641000,-15000.0,0.00014456,2]
[424281444,1780740641000,-4005.255,0.00014558,2]
[424281448,1780740641000,-933.040679,0.00014621,2]
[424281432,1780740641000,-476.08427911,0.0001421,7]
[424281452,1780740641000,-235.88706806,0.00014699,2]
[424281464,1780740641000,-15000.0,0.0001481,2]
[424281451,1780740641000,-15000.0,0.00014658,2]
[424281453,1780740641000,-681.07442116,0.00014699,2]
[424281463,1780740641000,-15000.0,0.00014796,2]
[424281456,1780740641000,-15000.0,0.00014745,2]
[424281455,1780740641000,-1284.8,0.000147,2]
[424281460,1780740641000,-153.398234,0.00014796,2]
[424281457,1780740641000,-6111.0,0.00014752,2]
[424281458,1780740641000,-15000.0,0.00014772,2]
[424281459,1780740641000,-10000.0,0.00014772,2]
[424281454,1780740641000,-26221.23284016,0.000147,2]
[424281461,1780740641000,-151.0,0.00014796,2]
[424281402,1780740641000,-669.61574187,0.00013869,2]
[424281462,1780740641000,-151.0,0.00014796,2]
[424281430,1780740641000,-166.66,0.0001411,2]
[424281438,1780740641000,-15000.0,0.00014407,2]
[424281431,1780740641000,-15000.0,0.0001414,2]